Cogmind - Beta 15 @@@ ROGUE MODE // 2025.09.25 @ 22:50:09 Player: Runagate Result: Self-destructed Performance ------------- Evolutions (4) 2000 Regions Visited (5) 1000 Robots Destroyed (108) 540 Value Destroyed (3328) 3328 Prototype IDs (5) 100 Alien Tech Used (0) 0 Bonus (46) 46 TOTAL SCORE: 7014 Bonus ------- High Alert Combat Kills 46 Cogmind --------- Core Integrity 728/850 Matter 147/300 Energy 3/100 System Corruption 1% Temperature Cool (0) Movement Treading (320) Ox2 Location -6/Factory Parts ------- > --- POWER (1) -------- (None) > --- PROPULSION (4) --- Medium Treads > --- UTILITY (7) ------ Improved Cooling System High-capacity Storage Unit Improved Sensor Array Improved Signal Interpreter Matter Filter Improved Medium Armor Plating > --- WEAPON (3) ------- Autogun Assault Cannon Magnetic Acceleration Cannon > --- INVENTORY (20) --- Deuterium Engine Nuclear Core Improved Cooling System Improved Cooling System Huge Storage Unit Compact Matter Pod (0) Compact Matter Pod (0) Autogun Shotgun High-powered Shotgun Assault Cannon Rocket Launcher Axe Peak State ------------ > --- POWER ------------ Micro Nuclear Core > --- PROPULSION ------- Light Treads Medium Treads > --- UTILITY ---------- Improved Cooling System Improved Cooling System High-capacity Storage Unit Improved Sensor Array Improved Signal Interpreter Matter Filter Improved Medium Armor Plating > --- WEAPON ----------- Assault Cannon Gauss Cannon Magnetic Acceleration Cannon > --- INVENTORY -------- Deuterium Engine Nuclear Core Improved Cooling System Improved Cooling System Huge Storage Unit Compact Matter Pod Compact Matter Pod Shotgun High-powered Shotgun Assault Cannon Rocket Launcher Axe [Rating: 47] Favorites ----------- Power Micro Nuclear Core Engine Cooled Ion Engine Power Core Micro Nuclear Core Propulsion Light Treads Treads Light Treads Leg Improved Aluminum Leg Wheel Wheel Utility High-capacity Storage Unit Device Improved Cooling System Storage High-capacity Storage Unit Processor Improved Signal Interpreter Protection Hardened Medium Armor Plating Weapon Gauss Cannon Energy Gun Medium Laser Ballistic Gun Shotgun Ballistic Cannon Gauss Cannon Slashing Weapon Axe Build | -11 -10 -9 -8 -7 -6 ------- Run | Yrd Mat Mat Mat Fac Fac Slots Evolved 8 | . . 2 2 2 2 Power . | . . . . . . Propulsion 2 | . . 1 1 . . Utility 5 | . . . 1 2 2 Weapon 1 | . . 1 . . . Parts Attached 77 | 10 5 11 25 14 12 Power 10 | 2 . 3 2 2 1 Engine 4 | 2 . 1 . . 1 Core 6 | . . 2 2 2 . Reactor . | . . . . . . Propulsion 16 | 2 2 5 6 . 1 Treads 13 | 2 . 4 6 . 1 Leg 2 | . 2 . . . . Wheel 1 | . . 1 . . . Hover . | . . . . . . Flight . | . . . . . . Utility 24 | 3 . 1 7 9 4 Device 15 | 2 . . 4 6 3 Storage 2 | 1 . 1 . . . Processor 2 | . . . 1 1 . Hackware . | . . . . . . Protection 5 | . . . 2 2 1 Artifact . | . . . . . . Weapon 27 | 3 3 2 10 3 6 Energy Gun 1 | 1 . . . . . Energy Cannon . | . . . . . . Ballistic Gun 14 | 2 3 1 6 . 2 Ballistic Cannon 11 | . . 1 4 3 3 Launcher . | . . . . . . Special Weapon . | . . . . . . Impact Weapon . | . . . . . . Slashing Weapon 1 | . . . . . 1 Piercing Weapon . | . . . . . . Special Melee Weapon . | . . . . . . Unidentified Prototypes 1 | . . 1 . . . Parts Lost 26 | . 1 1 4 8 12 Power 4 | . 1 1 . . 2 Propulsion 8 | . . . . 5 3 Utility 7 | . . . 2 2 3 Weapon 7 | . . . 2 1 4 Highest Loss Streak 4 | . 1 1 4 2 3 To Critical Strikes . | . . . . . . Average Backups 15 | 1 5 7 15 19 17 Power 2 | . . . 2 3 2 Propulsion 1 | . . . 2 2 . Utility 6 | . 2 3 4 8 8 Weapon 5 | . 1 2 5 6 5 Tool/Special . | . . . . . . Unused Backups 16 | . . 1 5 3 7 Power 6 | . . 1 2 1 2 Propulsion . | . . . . . . Utility 7 | . . . 3 1 3 Weapon 3 | . . . . 1 2 Tool/Special . | . . . . . . Average Slot Usage (%) 92 | . 96 94 98 97 67 Engine 3 | . 10 8 8 . 2 Core 3 | . . 2 . 7 2 Treads 25 | . 20 16 35 28 10 Leg 1 | . 7 9 . . . Device 12 | . 14 11 8 14 13 Storage 8 | . 14 11 9 7 6 Processor 4 | . . . 3 6 6 Protection 4 | . . . 4 7 4 Ballistic Gun 6 | . 20 22 14 . . Ballistic Cannon 16 | . . 10 12 22 15 Peak Build Rating 47 | 7 12 18 33 41 47 Average Rating 29 | 5 8 16 24 38 33 On Entrance 16 | . 7 12 16 33 32 Naked Turns . | . . . . . . Heaviest Build 81 | 14 15 59 79 80 81 Greatest Support 83 | 40 40 63 83 83 48 Greatest Overweight (x) 24 | . . 2 . 1 24 Average Overweight (x) . | . . . . . 1 Largest Inventory Capacity 20 | 8 8 20 20 20 20 Average Capacity 17 | 7 8 9 20 20 20 Most Carried 20 | 2 8 8 20 20 20 Average Carried 15 | 1 5 7 15 19 17 Final Capacity 20 | 8 8 20 20 20 20 Final Carried 20 | 2 8 8 20 20 13 Class Distribution -------------------- 24% | Skirmisher 20% | Tank 18% | Mutant 9% | Gunner 8% | Scavenger-Skirmisher 7% | Scavenger-Gunner 5% | Scavenger-Tank 4% | Scavenger-Mutant Dominant Class ---------------- Mutant | -10/Materials Gunner | -9/Materials Scavenger-Gunner | -8/Materials Skirmisher | -7/Factory Mutant | -6/Factory Resources | -11 -10 -9 -8 -7 -6 ----------- Run | Yrd Mat Mat Mat Fac Fac Matter Collected 3495 | 325 228 357 1040 1008 537 Remotely 236 | 95 . . . . 141 Salvage Created 2962 | 217 228 455 1135 548 379 Parts 192 | 12 17 29 67 36 31 Haulers Intercepted 3 | . . . 1 1 1 Recyclers Shooed 7 | 1 . . 1 3 2 Parts Field Recycled . | . . . . . . Retrieved Matter . | . . . . . . Parts Self-Destructed . | . . . . . . Prevented . | . . . . . . Kills | -11 -10 -9 -8 -7 -6 ------- Run | Yrd Mat Mat Mat Fac Fac Combat Hostiles Destroyed 70 | . 7 7 29 21 6 Melee 1 | . . . . 1 . Guns 33 | . 7 6 20 . . Cannons 35 | . . 1 9 19 6 AOE 1 | . . . . 1 . Classes Destroyed 15 | 3 2 3 5 2 . Worker 13 | 2 . . 2 4 5 Builder 3 | . . 1 1 . 1 Tunneler 5 | 5 . . . . . Hauler 3 | . . . 1 1 1 Recycler 5 | 1 . 3 . . 1 Mechanic 1 | . . . . 1 . Operator 4 | . . . 1 2 1 Watcher 4 | . . . 2 2 . Swarmer 19 | . 3 3 6 4 3 Grunt 24 | . 4 2 13 5 . Brawler 2 | . . 1 . 1 . Duelist 1 | . . . 1 . . Sentry 12 | . . 1 8 2 1 Hunter 4 | . . . 1 2 1 Programmer 8 | . . . . 7 1 Best Kill Streak 8 | 7 3 8 5 3 5 Combat Bots Only 5 | . 3 4 5 3 3 Max Kills in Single Turn 2 | 1 2 1 2 2 1 Gunslinging 1 | . 1 . 1 . . Exploded 1 | . . . . 1 . Melee 1 | . . . . 1 . Uniques/NPCs Destroyed . | . . . . . . Combat | -11 -10 -9 -8 -7 -6 -------- Run | Yrd Mat Mat Mat Fac Fac Hostile Shots Fired 528 | . 43 24 130 220 111 Missed 136 | . 9 4 29 69 25 Hits 392 | . 34 20 101 151 86 Melee 6 | . . . 1 3 2 Projectile 386 | . 34 20 100 148 84 AOE 2 | . . . . 2 . Critical Strikes 7 | . . . 3 4 . Part Disruptions 1 | . . . . 1 . Damage Taken 5920 | . 463 292 1466 2297 1402 Core 601 | . 93 57 196 133 122 Absorbed by Shields . | . . . . . . Regen/Repaired (Parts) 308 | . . 103 . 205 . Core Remaining (%) 78 | 100 62 85 64 81 . Volleys Fired 208 | 20 22 18 63 56 29 Largest 3 | 2 2 3 3 3 3 Hottest 121 | 70 70 79 120 120 121 Shots Fired 561 | 40 44 54 182 171 70 Gun 238 | 40 44 36 116 . 2 Cannon 323 | . . 18 66 171 68 Launcher . | . . . . . . Special . | . . . . . . Kinetic 531 | 25 29 54 182 171 70 Thermal 30 | 15 15 . . . . Explosive . | . . . . . . Electromagnetic . | . . . . . . Robot Hit Streak 14 | 4 8 8 14 7 6 Robot Miss Streak 8 | 1 3 8 4 8 6 Penetration Max 1 | . . . 1 1 . Secondary Targets 5 | . 2 . 3 . . Max Gunslinging Chain 1 | . 1 . 1 . . Shots Hit Robots 348 | 25 34 32 117 89 51 Core Hits 165 | 10 14 18 68 34 21 Critical Kills . | . . . . . . Critical Parts Destroyed 1 | . . . 1 . . Critical Strikes 21 | 1 . . 5 10 5 Burn 1 | 1 . . . . . Destroy 1 | . . . 1 . . Blast 19 | . . . 4 10 5 Melee Attacks 10 | . . . . . 10 Impact . | . . . . . . Slashing 10 | . . . . . 10 Piercing . | . . . . . . Sneak Attacks 9 | . . . . . 9 Combat Hostiles . | . . . . . . Follow-up Attacks . | . . . . . . Damage Inflicted 8196 | 244 424 531 2264 2906 1827 Guns 2510 | 244 413 385 1432 . 36 Cannons 4450 | . . 145 784 2488 1033 Explosions 275 | . . . . 230 45 Melee 671 | . . . . . 671 Ramming 290 | . 11 1 48 188 42 Kinetic 6710 | 143 264 530 2216 2488 1069 Thermal 295 | 101 149 . . . 45 Explosive 230 | . . . . 230 . Electromagnetic . | . . . . . . Impact . | . . . . . . Slashing 671 | . . . . . 671 Piercing . | . . . . . . Highest Corruption 4 | . . 1 . 4 1 Average Corruption 2 | . . 1 . 2 1 Corruption Purged 5 | . . . . 5 . Corruption Blocked . | . . . . . . Effects 46 | . . 3 . 40 3 Message Errors 8 | . . 1 . 7 . Matter Fused 16 | . . 1 . 15 . Heat Flow Errors 8 | . . . . 6 2 Energy Discharges 5 | . . 1 . 3 1 Parts Fused 1 | . . . . 1 . Data Loss (minor) 1 | . . . . 1 . Data Loss (major) 3 | . . . . 3 . Misfires 3 | . . . . 3 . Alerts 1 | . . . . 1 . Overload Shots . | . . . . . . Overflow Damage 335 | . . . 13 123 199 Projectiles 100 | . . . 13 73 14 Explosions 50 | . . . . 50 . Melee 185 | . . . . . 185 Knockbacks 35 | . . 1 . 26 8 Impact 1 | . . . . 1 . Kinetic 33 | . . 1 . 24 8 Secondary 1 | . . . . 1 . Self-Inflicted Damage 456 | . . . . 229 227 Shots 5 | . . . . 3 2 Rammed 46 | . 3 1 4 27 11 Targets Rammed 54 | . 3 1 6 33 11 Kicked . | . . . . . . Crushed 8 | . . . 2 6 . Highest Temperature 258 | 80 173 41 258 223 147 Average Temperature 55 | 32 68 10 66 74 53 Received Heat Transfer 1257 | . 258 63 531 333 72 Siege Activations . | . . . . . . Martial Activations . | . . . . . . Shielding Activations . | . . . . . . Robots Disrupted . | . . . . . . Combat Hostiles . | . . . . . . Robots Corrupted . | . . . . . . Combat Hostiles . | . . . . . . Parts Fried . | . . . . . . Impact Corruptions . | . . . . . . Robots Melted . | . . . . . . Combat Hostiles . | . . . . . . Parts Melted 1 | 1 . . . . . Heat Transferred 864 | 370 444 . . . 50 Parts Sabotaged . | . . . . . . Parts Stolen . | . . . . . . Parts Stripped . | . . . . . . Power Chain Reactions 1 | . . . . 1 . Alert | -11 -10 -9 -8 -7 -6 ------- Run | Yrd Mat Mat Mat Fac Fac Maximum Alert Level 2 | . . . 2 2 . Low Security (%) 72 | 100 100 100 49 60 100 Level 1 22 | . . . 42 32 . Level 2 4 | . . . 7 7 . Level 3 . | . . . . . . Level 4 . | . . . . . . Level 5 . | . . . . . . High Security . | . . . . . . Max Security . | . . . . . . Peak Influence 463 | 15 80 129 463 428 198 Initial 203 | . . 9 20 203 198 Average 135 | 2 21 56 199 184 51 Influence Increases 2650 | 40 209 212 872 1000 317 Destroy 0b10 Robot/C 1400 | . 140 140 580 420 120 Destroy 0b10 Robot/NC 190 | 40 . 20 35 50 45 Destroy Leader 384 | . 30 30 156 126 42 Successful Hack 40 | . 9 3 26 2 . Disable Machine 345 | . . . 15 270 60 Destroy Structure 186 | . . 4 30 102 50 Partial Spotted 30 | . 15 15 . . . Lose Combat Pursuer 75 | . 15 . 30 30 . Influence Decreases 2627 | 40 186 187 472 1042 700 Entered New Map 495 | . . 14 28 245 208 Time Decay 1904 | 40 176 173 404 717 394 Lost Part 228 | . 10 . 40 80 98 Squads Dispatched 20 | . . . 7 10 3 Investigation 3 | . . . 2 1 . Extermination 8 | . . . . 7 1 Reinforcement 7 | . . . 3 2 2 Assault . | . . . . . . Garrison 2 | . . . 2 . . Intercept . | . . . . . . Searches Triggered . | . . . . . . Construction Impeded 2 | . . . . . 2 Haulers Reinforced . | . . . . . . Active Scanning Responses . | . . . . . . Cargo Convoy Interrupts . | . . . . . . Stealth | -11 -10 -9 -8 -7 -6 --------- Run | Yrd Mat Mat Mat Fac Fac Distress Signals 2 | . 1 . . 1 . Communications Jammed . | . . . . . . Distress Signals . | . . . . . . Times Spotted 101 | . 11 8 36 35 11 Peak Tracking Total 6 | . 3 3 6 5 4 Tactical Retreats 4 | . 1 . 2 1 . Traps | -11 -10 -9 -8 -7 -6 ------- Run | Yrd Mat Mat Mat Fac Fac Traps Triggered 7 | . 1 1 2 2 1 Indirectly . | . . . . . . Trap Hack Attempts . | . . . . . . Triggered . | . . . . . . Disarmed . | . . . . . . Reprogrammed . | . . . . . . Reused . | . . . . . . Traps Extracted . | . . . . . . Installed . | . . . . . . Triggered . | . . . . . . Machines | -11 -10 -9 -8 -7 -6 ---------- Run | Yrd Mat Mat Mat Fac Fac Machines Disabled 23 | . . . 1 18 4 Max in Single Turn 4 | . . . 1 4 2 Garrison Access 1 | . . . 1 . . Machines Repaired . | . . . . . . Machines Dismantled . | . . . . . . Machines Sabotaged . | . . . . . . Overloaded Fab Kills . | . . . . . . Hacking | -11 -10 -9 -8 -7 -6 --------- Run | Yrd Mat Mat Mat Fac Fac Machines Accessed 16 | . 3 2 4 7 . Terminals 11 | . 3 1 3 4 . Fabricators 1 | . . . . 1 . Repair Stations 2 | . . 1 . 1 . Recycling Units 1 | . . . . 1 . Scanalyzers . | . . . . . . Garrison Access 1 | . . . 1 . . Total Hacks 35 | . 7 9 7 12 . Successful 17 | . 2 5 5 5 . Failed 18 | . 5 4 2 7 . Catastrophic 4 | . 1 . . 3 . Database Lockouts . | . . . . . . Manual 10 | . . . 4 6 . Terminals 21 | . 7 3 5 6 . Fabricators 1 | . . . . 1 . Repair Stations 10 | . . 6 . 4 . Recycling Units 1 | . . . . 1 . Scanalyzers . | . . . . . . Garrison Access 2 | . . . 2 . . Terminal Hacks 7 | . 2 1 4 . . Prototype ID Bank 2 | . 1 1 . . . Locate Traps 2 | . 1 . 1 . . Patrol Status 1 | . . . 1 . . Registered Components 1 | . . . 1 . . Zone Layout 1 | . . . 1 . . Fabricator Hacks . | . . . . . . Repair Station Hacks 8 | . . 4 . 4 . Scan Component 4 | . . 2 . 2 . Repair 4 | . . 2 . 2 . Recycling Unit Hacks 1 | . . . . 1 . Retrieve Matter 1 | . . . . 1 . Scanalyzer . | . . . . . . Garrison Access Hacks 1 | . . . 1 . . Seal Access 1 | . . . 1 . . Unauthorized Hacks . | . . . . . . Terminals . | . . . . . . Fabricators . | . . . . . . Repair Stations . | . . . . . . Recycling Units . | . . . . . . Scanalyzers . | . . . . . . Garrison Access . | . . . . . . Data Cores Recovered 2 | . . . . 1 1 Used . | . . . . . . Hacking Detections 14 | . 3 2 2 7 . Full Trace Events 1 | . . . . 1 . Feedback Events . | . . . . . . Feedback Blocked . | . . . . . . Robot Schematics Acquired . | . . . . . . Robots Built . | . . . . . . Authchips . | . . . . . . Time . | . . . . . . Total Robot Build Rating . | . . . . . . Part Schematics Acquired . | . . . . . . Parts Built . | . . . . . . Authchips . | . . . . . . Time . | . . . . . . Total Part Build Rating . | . . . . . . Parts Repaired 4 | . . 2 . 2 . Time 116 | . . 58 . 58 . Parts Recycled . | . . . . . . Recycled Matter . | . . . . . . Retrieved Matter . | . . . . . . Retrieved Components . | . . . . . . Parts Scanalyzed . | . . . . . . Part Schematics Acquired . | . . . . . . Parts Damaged . | . . . . . . Bothacking | -11 -10 -9 -8 -7 -6 ------------ Run | Yrd Mat Mat Mat Fac Fac Used RIF Installer . | . . . . . . Robots Hacked . | . . . . . . Non-combat . | . . . . . . Combat . | . . . . . . Robot Hacks Applied . | . . . . . . Relay Couplers Released . | . . . . . . Fabnet Peak Effective % . | . . . . . . Robots Rewired . | . . . . . . Allies Hacked . | . . . . . . Hacks Repelled . | . . . . . . Allies | -11 -10 -9 -8 -7 -6 -------- Run | Yrd Mat Mat Mat Fac Fac Total Allies . | . . . . . . Largest Group . | . . . . . . Highest-Rated Group . | . . . . . . Highest-Rated Ally . | . . . . . . Total Orders . | . . . . . . Ally Attacks . | . . . . . . Total Damage . | . . . . . . Kills . | . . . . . . Allies Corrupted . | . . . . . . Allies Melted . | . . . . . . Intel | -11 -10 -9 -8 -7 -6 ------- Run | Yrd Mat Mat Mat Fac Fac Active Infowar (turns) 5127 | 48 740 558 1009 2446 326 Sensors 2743 | . . . . 2417 326 Seismic 2387 | 48 740 558 1009 32 . Robot Analysis Total . | . . . . . . Derelict Logs Recovered . | . . . . . . Drone Launches . | . . . . . . Drone Recoveries . | . . . . . . Exploration | -11 -10 -9 -8 -7 -6 ------------- Run | Yrd Mat Mat Mat Fac Fac Turns Passed 7414 | 184 740 558 1413 3327 1192 Spaces Moved 3468 | 70 418 317 671 1644 348 Core 17 | 2 . . . . 15 Treads 3070 | 68 273 81 671 1644 333 Legs 291 | . 145 146 . . . Wheels 90 | . . 90 . . . Hover . | . . . . . . Flight . | . . . . . . Fastest Speed 50 | 50 120 110 160 160 240 Average Speed 175 | 156 146 127 160 176 284 Slowest Speed 1250 | 160 160 240 160 240 1250 Overloaded Moves . | . . . . . . Propulsion Burnouts . | . . . . . . Robots Hopped . | . . . . . . Potential Cave-ins . | . . . . . . Cave-ins Triggered . | . . . . . . Exploration Rate (%) 32 | 4 59 28 52 41 10 Regions Visited 5 Branch Regions . Pre-discovered Areas . | . . . . . . Known Exits Taken 1 | . . . . 1 . Unknown Exits Taken 4 | 1 1 1 1 . . Scrap Searched . | . . . . . . Spaces Dug 9 | . . . . 9 . Terrain Destroyed 176 | . . 3 25 98 50 Melee . | . . . . . . Projectile 80 | . . 3 25 41 11 AOE 96 | . . . . 57 39 Terrain Rammed . | . . . . . . Walls Destroyed . | . . . . . . Machines Disabled . | . . . . . . Actions | -11 -10 -9 -8 -7 -6 --------- Run | Yrd Mat Mat Mat Fac Fac Total 4276 | 104 501 430 880 1910 451 Wait 345 | 4 38 72 76 120 35 Move 3463 | 69 417 316 670 1643 348 Hop . | . . . . . . Pick Up 38 | 1 7 3 19 8 . Fast Attach 24 | 7 2 3 3 4 5 Attach 18 | . 1 1 3 6 7 Detach . | . . . . . . Swap 78 | 3 7 10 22 31 5 Drop 38 | . 4 6 18 9 1 Fire 208 | 20 22 18 63 56 29 Melee 10 | . . . . . 10 Ram 1 | . . 1 . . . Kick . | . . . . . . Crush 53 | . 3 . 6 33 11 Escape Stasis . | . . . . . . Rewire . | . . . . . . Trap . | . . . . . . Miscellaneous . | . . . . . . Route ------- -11/Scrapyard -10/Materials (discovered 3 exits: *Mat x2 / [*Min]) -9/Materials -8/Materials (discovered 2 exits: *Fac x2) -7/Factory (discovered 3 exits: *Fac / *Low x2) -6/Factory History --------- Turn | Location | Event 4 | -11/Scrapyard | Discovered new exit (range 16) 185 | -11/Scrapyard | Entered Materials 236 | -10/Materials | Discovered new exit (range 6) 300 | -10/Materials | Build established: Mutant 534 | -10/Materials | Discovered new exit (range 5) 836 | -10/Materials | Discovered new exit (range 15) 925 | -10/Materials | Entered another Materials area 925 | -9/Materials | Evolved 2 slots: Propulsion x1, Weapon x1 1273 | -9/Materials | Build established: Gunner 1351 | -9/Materials | Repaired Imp. Treads 1379 | -9/Materials | Repaired Lgt. Treads 1467 | -9/Materials | Discovered new exit (range 11) 1483 | -9/Materials | Entered another Materials area 1483 | -8/Materials | Evolved 2 slots: Propulsion x1, Utility x1 1816 | -8/Materials | Build established: Scavenger-Gunner 1862 | -8/Materials | Discovered new exit (range 11) 2160 | -8/Materials | Lost 4 parts (2u2w) 2279 | -8/Materials | Discovered new exit (range 15) 2896 | -8/Materials | Entered Factory 2896 | -7/Factory | Evolved 2 slots: Utility x2 3258 | -7/Factory | Build established: Skirmisher 3380 | -7/Factory | Repaired Imp. Treads 3407 | -7/Factory | Repaired Lgt. Treads 3707 | -7/Factory | Build established: Scavenger-Skirmisher 4701 | -7/Factory | Discovered new exit (range 7) 4742 | -7/Factory | Identified exit to Lower Caves 4973 | -7/Factory | Build established: Tank 5289 | -7/Factory | Build established: Skirmisher 5721 | -7/Factory | Discovered exit to Lower Caves (range 7) 6202 | -7/Factory | Discovered new exit (range 6) 6221 | -7/Factory | Identified exit to Factory 6223 | -7/Factory | Entered another Factory area 6223 | -6/Factory | Evolved 2 slots: Utility x2 6906 | -6/Factory | Lost 3 parts (2u1w) 7084 | -6/Factory | Lost 3 parts (1p2w) 7415 | -6/Factory | Self-destructed Last Messages --------------- 07315_ K-01 Serf collects debris. 07317_ Slammed into S-27 Virus. 07318_ K-01 Serf collects debris. 07319_ Slammed into S-27 Virus. 07320_ Extracted 32 matter. 07321_ K-01 Serf collects debris. 07321_ S-27 Virus destroyed. 07324_ Acquired 11 matter. 07325_ K-01 Serf collects debris. 07329_ Acquired 10 matter. 07332_ Slammed into K-01 Serf. 07334_ Acquired 8 matter. 07336_ Acquired 6 matter. 07339_ Slammed into U-05 Engineer. 07346_ Acquired 14 matter. 07356_ Acquired Unknown Ballistic Gun. 07356_ Identified Autogun. 07400_ System corrupted: Heat flow error (+182). 07411_ Imp. Cooling System destroyed. 07413_ Lgt. Treads destroyed. Map ----- +----------------------------------------------------+ | ?????????????????????????????????????????????????? | | ?????????????????????????????????????????????????? | | ?????????????????????????????????????????????????? | | ?????????????????????????????????????????????????? | | ????????????????????????###??????????????????????? | | ???????????????????????? ??????????????????????? | | ???????????????????????? ???????????????????????? | | ???????????????????????# ???????????????????????? | | ???????????????????????# ???????????????????????? | | ?????????????????? ????# ???????????????????????? | | ??????????????????""???# ???????????????????????? | | ??????????????????"" ??+ ???????????????????????? | | ???????????????????" ?# #???????????????????????? | | ???????????????????? # #???????????????????????? | | ????????????????????? #=#???????????????????????? | | ?????????????????????### #???????????????????????? | | ?????????????????????###|###?????????????????????? | | ?????????????????????#*! =k#############?????????? | | ??????????????######## ! t ???????? | | ??????????????# "%" k"" ! ???????? | | ??????????????# ###### ???????? | | ??????????????# #????#= g !#######+######????????? | | ??????????????# #????###g###?????????????????????? | | ??????????????# #??????#g#???????????????????????? | | ??????????????# #?????##l#####???????????????????? | | ??????????????# #?????# @% #???????????????????? | | ??????????????# #?????# % #???????????????????? | | ??????????????# ####### #???????????????????? | | ??????????????# + """ #???????????????????? | | ??????????????# ####### """ #???????????????????? | | ??????????????# #?????# """ #???????????????????? | | ??????????????# #?????########???????????????????? | | ??????????????# #????????????????????????????????? | | ??????????????# #????????????????????????????????? | | ??????????????# #?#########??????????????????????? | | ????? ???????# #?# ?????????????????????? | | ????? ???????# #?# ????????????????????? | | ?????? ??????# #?# """ ""? ???????????????????? | | ??????? ?????# #?# """ """ #?????????????????? | | ???#####+###### ### """ """ #?????????????????? | | ? # #?????????????????? | | ? ! # """ """ #?????????????????? | | ? / """ """ #?????????????????? | | ?? # """ """ #?????????????????? | | ?? """" # #?????????????????? | | ???### """" # #?????????????????? | | ?????# """" # ! #?????????????????? | | ?????# """" ## #######?????????????????? | | ?????# """" ## #???????????????????????? | | ?????# """" ## " ####????????????????????? | +----------------------------------------------------+ Best States ------------- Heat Dissipation 91 Energy Generation 15 Energy Capacity 280 Matter Stores 300 Matter Capacity 300 Sight Range 16 Robot Scan Range 15 Terrain Scan Density 10 Armor Coverage 225 Evasion (%) 55 Targeting Accuracy 6 Recoil Reduction 4 Matter Filtering 30 Item Schematics ----------------- None Robot Schematics ------------------ None Fabricated ------------ Nothing Repaired ---------- Imp. Treads | 68% | -9/Materials Lgt. Treads | 61% | -9/Materials Imp. Treads | 24% | -7/Factory Lgt. Treads | 37% | -7/Factory Alien Tech Used ----------------- None Achievements -------------- None Challenges ------------ None Game ------ Seed SigixHypercooledMatrix Manual? 0 Play Time 00:37:42 Cumulative 97.8 hours Start 2025.09.25 @ 22:13:01 End 2025.09.25 @ 22:50:09 Sessions 1 Manual Loads 0 Difficulty Rogue Special Mode None Game No. 197 Rogue 195 Adventurer 0 Explorer 2 Win Type - Total 0 Types 0/0/0/0/0/0/0/0/0/0 Lore% 33 Gallery% 48 Achievement% 42 Wizard Run 0 Options --------- Layout 2 ASCII 0 Keyboard 1 Movement Arrows Keybinds 0 Fullscreen 1 Font 28/SmallcapsGlow Map View 50x49 Zoom Use 0% Tactical HUD 1 Map Filters NONE Filters NONE Steam 1 RUN: a7baf0c2-d47f-463f-bacc-1d1c4f0e315c